fUST/lending_fUST_20250617
["ID","MTS","AMOUNT","RATE_DAILY","PERIOD"]
[366162144,1750095040380,-3000.0,0.000231,2]
[366162146,1750095040389,-835.92,0.000231,2]
[366162149,1750095040400,-709.83,0.000231,3]
[366162151,1750095040411,-3000.0,0.0002311,2]
[366162153,1750095040421,-3000.0,0.0002312,2]
[366162155,1750095040431,-946.43,0.00023128,3]
[366162157,1750095040441,-473.22,0.00023128,3]
[366162159,1750095040451,-236.61,0.00023128,3]
[366162161,1750095040461,-3000.0,0.0002313,2]
[366162163,1750095040471,-202.61337266,0.00023136,2]
[366162165,1750095040481,-5000.0,0.00023138,2]
[366162167,1750095040491,-500.0,0.00023138,2]
[366162169,1750095040501,-500.0,0.00023138,2]
[366162171,1750095040511,-500.0,0.00023138,2]
[366162173,1750095040521,-500.0,0.00023138,2]
[366162175,1750095040530,-500.0,0.00023138,2]
[366162177,1750095040540,-500.0,0.00023138,2]
[366162179,1750095040549,-514.63180266,0.00023138,2]
[366162181,1750095040559,-500.0,0.00023138,2]
[366162183,1750095040569,-500.0,0.00023138,2]
[366162185,1750095040579,-500.0,0.00023138,2]
[366162187,1750095040588,-500.0,0.00023138,2]
[366162189,1750095040598,-207.4,0.00023138,2]
[366162192,1750095040609,-500.0,0.00023138,2]
[366162194,1750095040618,-500.0,0.00023138,2]
[366162196,1750095040628,-500.0,0.00023138,2]
[366162198,1750095040638,-500.0,0.00023138,2]
[366162200,1750095040647,-500.0,0.00023138,2]
[366162202,1750095040658,-500.0,0.00023138,2]
[366162204,1750095040668,-500.0,0.00023138,2]
[366162206,1750095040677,-3000.0,0.0002314,2]
[366162208,1750095040687,-3000.0,0.0002315,2]
[366162209,1750095040697,-3000.0,0.0002316,2]
[366162211,1750095040707,-3000.0,0.0002317,2]
[366162214,1750095040717,-3000.0,0.0002318,2]
[366162216,1750095040727,-2692.76,0.00023187,2]
[366162218,1750095040737,-3000.0,0.0002319,2]
[366162220,1750095040747,-3000.0,0.000232,2]
[366162222,1750095040757,-104621.75539286,0.000232,2]
[366162224,1750095040771,-168.0,0.00023208,2]
[366162226,1750095040782,-3000.0,0.0002321,2]
[366162228,1750095040792,-3000.0,0.0002322,2]
[366162230,1750095040801,-3000.0,0.0002323,2]
[366162232,1750095040813,-1000.0,0.00023237,2]
[366162234,1750095040822,-3000.0,0.0002324,2]
[366162236,1750095040831,-3000.0,0.0002325,2]
[366162238,1750095040841,-3000.0,0.0002326,2]
[366162240,1750095040851,-3000.0,0.0002327,2]
[366162242,1750095040861,-3000.0,0.0002328,2]
[366162244,1750095040871,-173.13440415,0.00023287,2]
[366162246,1750095040882,-1008.88,0.00023287,4]
[366162248,1750095040892,-460.0,0.00023287,4]
[366162250,1750095040902,-576.8,0.00023287,4]
[366162252,1750095040911,-460.0,0.00023287,4]
[366162254,1750095040921,-773.97,0.00023287,4]
[366162256,1750095040931,-721.46,0.00023287,4]
[366162258,1750095040941,-460.0,0.00023287,4]
[366162260,1750095040950,-460.0,0.00023287,4]
[366162262,1750095040961,-460.0,0.00023287,4]
[366162264,1750095040971,-460.0,0.00023287,4]
[366162266,1750095040984,-1153.03,0.00023287,4]
[366162268,1750095040994,-744.32,0.00023287,4]
[366162270,1750095041005,-460.0,0.00023287,4]
[366162272,1750095041014,-937.53,0.00023287,4]
[366162274,1750095041024,-681.2,0.00023287,4]
[366162276,1750095041034,-678.86,0.00023287,4]
[366162278,1750095041044,-317.7428168,0.00023288,2]
[366162280,1750095041054,-1147.5719738,0.00023288,2]
[366162282,1750095041064,-353.9875236,0.00023288,2]
[366162284,1750095041075,-500.0,0.00023288,2]
[366162286,1750095041085,-500.0,0.00023288,2]
[366162288,1750095041094,-500.0,0.00023288,2]
[366162290,1750095041104,-486.61056553,0.00023288,2]
[366162292,1750095041113,-3000.0,0.0002329,2]
[366162294,1750095041123,-3000.0,0.000233,2]
[366162296,1750095041133,-3615.770869,0.0002331,2]
[366162298,1750095041142,-190.0,0.00023311,2]
[366162300,1750095041153,-190.0,0.00023333,2]
[366162302,1750095041163,-150.0,0.000234,2]
[366162304,1750095041173,-150.0,0.000234,2]
[366162306,1750095041183,-150.0,0.000234,2]
[366162308,1750095041193,-1486.447378,0.0002352,3]
[366162310,1750095041202,-190.0,0.00023543,2]
[366162313,1750095041212,-1008.88,0.00023561,4]
[366162315,1750095041221,-460.0,0.00023561,4]
[366162317,1750095041231,-576.8,0.00023561,4]
[366162319,1750095041242,-460.0,0.00023561,4]
[366162321,1750095041252,-773.97,0.00023561,4]
[366162323,1750095041262,-721.46,0.00023561,4]
[366162324,1750095041272,-460.0,0.00023561,4]
[366162326,1750095041281,-460.0,0.00023561,4]
[366162328,1750095041292,-460.0,0.00023561,4]
[366162330,1750095041301,-460.0,0.00023561,4]
[366162332,1750095041312,-1153.03,0.00023561,4]
[366162335,1750095041322,-744.32,0.00023561,4]
[366162337,1750095041333,-460.0,0.00023561,4]
[366162339,1750095041343,-937.53,0.00023561,4]
[366162341,1750095041354,-681.2,0.00023561,4]
[366162343,1750095041364,-678.86,0.00023561,4]
[366162345,1750095041374,-833.0,0.00023561,2]
[366162347,1750095041384,-653.0,0.0002358,2]
[366162349,1750095041394,-2160.0,0.0002358,2]
[366162351,1750095041404,-406.0,0.0002358,2]
[366162353,1750095041414,-964.0,0.0002358,2]
[366162355,1750095041426,-190.0,0.00023581,2]
[366162357,1750095041437,-833.0,0.00023596,2]
[366162359,1750095041447,-15951.31720771,0.00023597,2]
[366162361,1750095041456,-202.61337266,0.00023634,2]
[366162363,1750095041466,-500.0,0.0002365,2]
[366162365,1750095041475,-5000.0,0.00023686,2]
[366162367,1750095041485,-41651.31805906,0.000237,2]
[366162369,1750095041495,-500.0,0.00023706,2]
[366162371,1750095041504,-1000.0,0.00023785,2]
[366162373,1750095041514,-12500.0,0.000238,3]
[366162375,1750095041523,-5333.12688153,0.000238,3]
[366162377,1750095041533,-844.94977992,0.000238,3]
[366162379,1750095041544,-1008.88,0.00023835,4]
[366162381,1750095041554,-460.0,0.00023835,4]
[366162383,1750095041563,-576.8,0.00023835,4]
[366162385,1750095041573,-460.0,0.00023835,4]
[366162387,1750095041582,-773.97,0.00023835,4]
[366162389,1750095041592,-721.46,0.00023835,4]
[366162391,1750095041602,-460.0,0.00023835,4]
[366162393,1750095041612,-460.0,0.00023835,4]
[366162395,1750095041622,-460.0,0.00023835,4]
[366162397,1750095041631,-460.0,0.00023835,4]
[366162399,1750095041641,-1153.03,0.00023835,4]
[366162401,1750095041651,-744.32,0.00023835,4]
[366162403,1750095041660,-460.0,0.00023835,4]
[366162405,1750095041669,-937.53,0.00023835,4]
[366162407,1750095041679,-681.2,0.00023835,4]
[366162409,1750095041688,-678.86,0.00023835,4]
[366162411,1750095041699,-200.13247394,0.00023852,2]
[366162413,1750095041709,-833.0,0.0002389,2]
[366162415,1750095041720,-190.0,0.00023891,2]
[366162417,1750095041730,-268.122783,0.0002395,2]
[366162419,1750095041739,-500.0,0.0002395,2]
[366162421,1750095041750,-500.0,0.00023973,2]
[366162423,1750095041759,-500.0,0.00023979,2]
[366162425,1750095041774,-500.0,0.00023979,2]
[366162427,1750095041784,-500.0,0.00023979,2]
[366162429,1750095041794,-500.0,0.00023979,2]
[366162431,1750095041804,-500.0,0.00023979,2]
[366162433,1750095041815,-500.0,0.00023979,2]
[366162435,1750095041825,-501.65890684,0.00023979,2]
[366162437,1750095041835,-600.0,0.00023979,2]
[366162439,1750095041846,-37579.60895438,0.00023999,2]
[366162441,1750095041856,-9977.22718863,0.00024,2]
[366162443,1750095041865,-177.979999,0.00024,7]
[366162445,1750095041875,-151.0,0.00024,2]
[366162447,1750095041885,-151.0,0.00024,2]
[366162449,1750095041895,-23514.64278552,0.00024,2]
[366162451,1750095041904,-214.66567055,0.00024,2]
[366162453,1750095041914,-10000.0,0.00024,24]
[366162455,1750095041925,-151.0,0.00024,2]
[366162457,1750095041937,-158.42,0.00024,2]
[366162459,1750095041947,-117465.20689434,0.00024,2]
[366162461,1750095041956,-151.0,0.00024,7]
[366162463,1750095041967,-293.178687,0.00024,7]
[366162465,1750095041976,-151.0,0.00024,7]
[366162467,1750095041987,-702.29,0.00024019,7]
[366162469,1750095041997,-2200.0,0.00024038,2]
[366162471,1750095042007,-5020.69256955,0.00024049,2]
[366162486,1750095042147,-500.0,0.00024063,2]
[366162489,1750095042158,-556.0,0.00024064,2]
[366162491,1750095042170,-556.0,0.00024065,2]
[366162493,1750095042179,-963.0,0.00024067,2]
[366162495,1750095042189,-500.0,0.00024069,2]
[366162497,1750095042198,-500.25304027,0.00024069,2]
[366162498,1750095042208,-1008.88,0.00024109,4]
[366162500,1750095042217,-460.0,0.00024109,4]
[366162502,1750095042227,-576.8,0.00024109,4]
[366162505,1750095042237,-460.0,0.00024109,4]
[366162506,1750095042247,-773.97,0.00024109,4]
[366162509,1750095042258,-721.46,0.00024109,4]
[366162510,1750095042267,-460.0,0.00024109,4]
[366162512,1750095042277,-460.0,0.00024109,4]
[366162515,1750095042287,-460.0,0.00024109,4]
[366162517,1750095042297,-460.0,0.00024109,4]
[366162519,1750095042306,-1153.03,0.00024109,4]
[366162521,1750095042316,-744.32,0.00024109,4]
[366162523,1750095042326,-460.0,0.00024109,4]
[366162525,1750095042336,-937.53,0.00024109,4]
[366162527,1750095042346,-681.2,0.00024109,4]
[366162529,1750095042356,-678.86,0.00024109,4]
[366162530,1750095042366,-500.0,0.00024111,2]
[366162533,1750095042376,-702.29,0.00024119,6]
[366162534,1750095042385,-202.61337266,0.00024132,2]
[366162536,1750095042395,-296.699999,0.000242,2]
[366162538,1750095042406,-702.29,0.00024219,2]
[366162540,1750095042415,-5000.0,0.00024234,2]
[366162542,1750095042424,-626.78445006,0.0002425,2]
[366162545,1750095042436,-1000.0,0.00024254,2]
[366162546,1750095042445,-200.62640265,0.00024276,3]
[366162549,1750095042455,-317.0,0.00024276,3]
[366162551,1750095042464,-317.0,0.00024276,3]
[366162553,1750095042474,-1746.0,0.00024276,3]
[366162555,1750095042483,-1746.0,0.00024276,3]
[366162557,1750095042493,-333.93634825,0.00024276,3]
[366162559,1750095042503,-317.0,0.00024276,3]
[366162561,1750095042512,-317.0,0.00024276,3]
[366162563,1750095042522,-439.6428673,0.00024276,3]
[366162565,1750095042531,-317.0,0.00024276,3]
[366162567,1750095042540,-34301.81051387,0.00024279,2]
[366164900,1750095402574,21212.93605531,0.000245,120]
[366164905,1750095521823,200.0,0.00024657,120]
[366164915,1750095921258,1000.0,0.00024,120]
[366164916,1750095922252,1000.0,0.00024,120]
[366164917,1750095923518,1000.0,0.00024,120]
[366164918,1750095924081,1000.0,0.00024,120]
[366164923,1750096136020,392.053046,0.00013699,2]
[366164982,1750096232422,-666.0,0.00020068,2]
[366164984,1750096232433,-392.053046,0.00020187,2]
[366164987,1750096232443,-372.48778,0.00020424,2]
[366164989,1750096232453,-200.416432,0.00020469,2]
[366164990,1750096232462,-1676.122,0.00020548,10]
[366164992,1750096232472,-1000.0,0.00021,21]
[366164994,1750096232482,-500.0,0.00021064,2]
[366164997,1750096232496,-300.0,0.00021068,2]
[366164999,1750096232507,-1200.0,0.00021068,2]
[366165001,1750096232518,-1214.40030705,0.00021069,2]
[366165003,1750096232528,-500.0,0.00021069,2]
[366165005,1750096232538,-161.18398629,0.00021069,2]
[366165007,1750096232549,-500.0,0.00021069,2]
[366165010,1750096232560,-500.0,0.00021069,2]
[366165012,1750096232569,-365.57624593,0.00021069,2]
[366165014,1750096232579,-500.0,0.00021069,2]
[366165016,1750096232589,-436.21125296,0.00021069,2]
[366165017,1750096232599,-167.5865782,0.00021069,2]
[366165019,1750096232610,-19181.32025292,0.0002107,2]
[366165022,1750096232623,-876.47010365,0.0002107,2]
[366165509,1750096238330,-2833.78708917,0.0002107,2]
[366165518,1750096240601,-2008.42255426,0.0002107,2]
[366165520,1750096240612,-158.55637209,0.00021201,2]
[366165522,1750096240622,-424.54874296,0.000213,2]
[366165524,1750096240631,-229.90125484,0.000213,2]
[366165526,1750096240643,-1312.35,0.00021483,2]
[366165528,1750096240653,-361.9094738,0.000215,2]
[366165530,1750096240662,-556.0,0.00021635,2]
[366165532,1750096240672,-460.0,0.00021917,4]
[366165534,1750096240681,-460.0,0.00021917,4]
[366165535,1750096240691,-460.0,0.00021917,4]
[366165536,1750096240701,-460.0,0.00021917,4]
[366165538,1750096240711,-460.0,0.00021917,4]
[366165540,1750096240720,-515.98,0.00021917,4]
[366165542,1750096240730,-480.98,0.00021917,4]
[366165544,1750096240740,-460.0,0.00021917,4]
[366165546,1750096240750,-460.0,0.00021917,4]
[366165548,1750096240760,-482.51,0.00021917,4]
[366165550,1750096240769,-768.68,0.00021917,4]
[366165552,1750096240779,-496.21,0.00021917,4]
[366165554,1750096240789,-1000.0,0.00022,22]
[366165556,1750096240798,-556.0,0.00022081,2]
[366165559,1750096240811,-460.0,0.00022191,4]
[366165561,1750096240821,-460.0,0.00022191,4]
[366165563,1750096240830,-460.0,0.00022191,4]
[366165565,1750096240839,-460.0,0.00022191,4]
[366165566,1750096240849,-460.0,0.00022191,4]
[366165568,1750096240858,-515.98,0.00022191,4]
[366165570,1750096240868,-480.98,0.00022191,4]
[366165572,1750096240877,-460.0,0.00022191,4]
[366165574,1750096240887,-460.0,0.00022191,4]
[366165576,1750096240897,-482.51,0.00022191,4]
[366165578,1750096240907,-768.68,0.00022191,4]
[366165580,1750096240916,-496.21,0.00022191,4]
[366165582,1750096240926,-556.0,0.00022219,2]
[366165584,1750096240936,-500.0,0.00022223,2]
[366165586,1750096240945,-190.43050969,0.00022223,2]
[366165588,1750096240955,-346.0,0.00022224,2]
[366165590,1750096240966,-346.0,0.00022341,2]
[366165592,1750096240976,-556.0,0.00022372,2]
[366165595,1750096240986,-346.0,0.00022395,2]
[366165597,1750096240996,-2278.54527485,0.000224,2]
[366165599,1750096241006,-158.55637207,0.00022419,2]
[366165601,1750096241015,-664.28,0.00022463,4]
[366165603,1750096241025,-160.0,0.00022464,2]
[366165604,1750096241035,-460.0,0.00022464,4]
[366165606,1750096241044,-460.0,0.00022464,4]
[366165622,1750096241190,-460.0,0.00022464,4]
[366165624,1750096241210,-672.59,0.00022464,4]
[366165626,1750096241220,-460.0,0.00022465,4]
[366165628,1750096241230,-460.0,0.00022465,4]
[366165630,1750096241239,-460.0,0.00022465,4]
[366165632,1750096241249,-460.0,0.00022465,4]
[366165634,1750096241258,-460.0,0.00022465,4]
[366165636,1750096241268,-515.98,0.00022465,4]
[366165638,1750096241277,-480.98,0.00022465,4]
[366165640,1750096241288,-460.0,0.00022465,4]
[366165642,1750096241298,-460.0,0.00022465,4]
[366165644,1750096241308,-482.51,0.00022465,4]
[366165646,1750096241318,-768.68,0.00022465,4]
[366165648,1750096241328,-496.21,0.00022465,4]
[366165650,1750096241338,-346.0,0.00022657,2]
[366165652,1750096241347,-664.28,0.00022737,4]
[366165654,1750096241358,-460.0,0.00022738,4]
[366165656,1750096241368,-460.0,0.00022738,4]
[366165658,1750096241378,-460.0,0.00022738,4]
[366165660,1750096241388,-672.59,0.00022738,4]
[366165662,1750096241398,-460.0,0.00022739,4]
[366165664,1750096241408,-460.0,0.00022739,4]
[366165666,1750096241419,-460.0,0.00022739,4]
[366165668,1750096241429,-460.0,0.00022739,4]
[366165670,1750096241439,-460.0,0.00022739,4]
[366165672,1750096241449,-515.98,0.00022739,4]
[366165674,1750096241459,-480.98,0.00022739,4]
[366165676,1750096241469,-460.0,0.00022739,4]
[366165678,1750096241479,-460.0,0.00022739,4]
[366165680,1750096241489,-482.51,0.00022739,4]
[366165682,1750096241498,-768.68,0.00022739,4]
[366165684,1750096241508,-496.21,0.00022739,4]
[366165686,1750096241518,-1000.0,0.00023,23]
[366165688,1750096241528,-664.28,0.00023011,4]
[366165690,1750096241537,-460.0,0.00023012,4]
[366165692,1750096241547,-460.0,0.00023012,4]
[366165694,1750096241557,-460.0,0.00023012,4]
[366165696,1750096241567,-672.59,0.00023012,4]
[366165698,1750096241577,-347.6643,0.00023013,4]
[366165699,1750096241587,-460.0,0.00023013,4]
[366165702,1750096241597,-460.0,0.00023013,4]
[366165703,1750096241607,-460.0,0.00023013,4]
[366165706,1750096241618,-460.0,0.00023013,4]
[366165708,1750096241629,-515.98,0.00023013,4]
[366165710,1750096241639,-480.98,0.00023013,4]
[366165712,1750096241650,-460.0,0.00023013,4]
[366165713,1750096241659,-460.0,0.00023013,4]
[366165717,1750096241682,-482.51,0.00023013,4]
[366165719,1750096241694,-768.68,0.00023013,4]
[366165721,1750096241705,-496.21,0.00023013,4]
[366165723,1750096241715,-752.33,0.000231,2]
[366165725,1750096241726,-207.4,0.00023138,2]
[366165727,1750096241736,-5000.0,0.00023138,2]
[366165729,1750096241746,-500.0,0.00023138,2]
[366165731,1750096241757,-500.0,0.00023138,2]
[366165733,1750096241769,-500.0,0.00023138,2]
[366165734,1750096241779,-500.0,0.00023138,2]
[366165735,1750096241790,-500.0,0.00023138,2]
[366165736,1750096241802,-500.0,0.00023138,2]
[366165737,1750096241812,-500.0,0.00023138,2]
[366165738,1750096241822,-500.0,0.00023138,2]
[366165739,1750096241832,-500.0,0.00023138,2]
[366165740,1750096241842,-500.0,0.00023138,2]
[366165741,1750096241853,-500.0,0.00023138,2]
[366165742,1750096241863,-500.0,0.00023138,2]
[366165743,1750096241874,-500.0,0.00023138,2]
[366165744,1750096241884,-500.0,0.00023138,2]
[366165745,1750096241894,-500.0,0.00023138,2]
[366165746,1750096241904,-664.28,0.00023285,4]
[366165747,1750096241914,-460.0,0.00023286,4]
[366165748,1750096241924,-460.0,0.00023286,4]
[366165749,1750096241935,-460.0,0.00023286,4]
[366165750,1750096241945,-672.59,0.00023286,4]
[366165751,1750096241955,-460.0,0.00023287,4]
[366165752,1750096241965,-460.0,0.00023287,4]
[366165753,1750096241975,-460.0,0.00023287,4]
[366165754,1750096241985,-460.0,0.00023287,4]
[366165755,1750096241996,-515.98,0.00023287,4]
[366165756,1750096242007,-480.98,0.00023287,4]
[366165757,1750096242018,-460.0,0.00023287,4]
[366165758,1750096242030,-460.0,0.00023287,4]
[366165759,1750096242040,-482.51,0.00023287,4]
[366165760,1750096242049,-768.68,0.00023287,4]
[366165761,1750096242060,-496.21,0.00023287,4]
[366165762,1750096242070,-220.73450728,0.00023288,2]
[366165763,1750096242079,-178.63805122,0.00023295,2]
[366165764,1750096242089,-838.96,0.00023343,10]
[366165765,1750096242099,-438.56657345,0.00023345,2]
[366165766,1750096242109,-346.0,0.00023353,2]
[366165767,1750096242120,-346.0,0.00023395,2]
[366165768,1750096242130,-2624.69,0.00023436,2]
[366165769,1750096242143,-664.28,0.00023559,4]
[366165770,1750096242153,-460.0,0.0002356,4]
[366165771,1750096242163,-460.0,0.0002356,4]
[366165772,1750096242174,-460.0,0.0002356,4]
[366165773,1750096242185,-672.59,0.0002356,4]
[366165774,1750096242196,-460.0,0.00023561,4]
[366165775,1750096242206,-460.0,0.00023561,4]
[366165776,1750096242217,-460.0,0.00023561,4]
[366165777,1750096242229,-460.0,0.00023561,4]
[366165778,1750096242239,-515.98,0.00023561,4]
[366165779,1750096242249,-480.98,0.00023561,4]
[366165780,1750096242259,-460.0,0.00023561,4]
[366165781,1750096242269,-460.0,0.00023561,4]
[366165782,1750096242283,-768.68,0.00023561,4]
[366165784,1750096242293,-482.51,0.00023561,4]
[366165786,1750096242303,-496.21,0.00023561,4]
[366165788,1750096242313,-964.0,0.00023608,2]
[366165790,1750096242323,-188.925,0.00023608,2]
[366165792,1750096242332,-2160.0,0.00023608,2]
[366165794,1750096242342,-438.56657345,0.0002362,2]
[366165796,1750096242352,-158.55637207,0.00023637,2]
[366165798,1750096242361,-178.63805119,0.0002374,2]
[366165800,1750096242371,-346.0,0.0002376,2]
[366165802,1750096242381,-1274.097753,0.00023793,3]
[366165804,1750096242391,-664.28,0.00023833,4]
[366165806,1750096242401,-338.12,0.00023834,4]
[366165808,1750096242411,-460.0,0.00023834,4]
[366165810,1750096242421,-460.0,0.00023834,4]
[366165812,1750096242431,-672.59,0.00023834,4]
[366165814,1750096242441,-460.0,0.00023835,4]
[366165816,1750096242450,-460.0,0.00023835,4]
[366165818,1750096242460,-460.0,0.00023835,4]
[366165819,1750096242470,-460.0,0.00023835,4]
[366165820,1750096242480,-515.98,0.00023835,4]
[366165822,1750096242490,-480.98,0.00023835,4]
[366165824,1750096242500,-460.0,0.00023835,4]
[366165826,1750096242511,-460.0,0.00023835,4]
[366165828,1750096242520,-768.68,0.00023835,4]
[366165830,1750096242530,-482.51,0.00023835,4]
[366165832,1750096242540,-496.21,0.00023835,4]
[366165833,1750096242552,-346.0,0.00023854,2]
[366165835,1750096242562,-600.0,0.00023904,2]
[366165837,1750096242572,-151.0,0.00024,7]
[366165839,1750096242582,-1000.0,0.00024,24]
[366165841,1750096242593,-296.699999,0.00024,2]
[366165843,1750096242603,-158.42,0.00024,2]
[366165844,1750096242614,-346.0,0.00024029,2]
[366165846,1750096242623,-500.0,0.00024038,2]
[366165848,1750096242634,-500.0,0.0002405,2]
[366165850,1750096242645,-626.78445006,0.0002405,2]
[366165852,1750096242655,-975.40558972,0.00024081,2]
[366165857,1750096242706,-460.0,0.00024081,2]
[366165917,1750096243350,-460.0,0.00021917,4]
[366165919,1750096243360,-2358.69251453,0.00024081,2]
[366166368,1750097432567,-5111.7860329,0.00019678,2]
[366166369,1750097432578,-194.364937,0.00020181,2]
[366166370,1750097432588,-300.0,0.0002031,2]
[366166371,1750097432598,-300.0,0.0002031,2]
[366166372,1750097432607,-300.0,0.0002031,2]
[366166373,1750097432617,-420.0,0.00020311,2]
[366166375,1750097432627,-500.0,0.00020311,2]
[366166376,1750097432637,-500.0,0.00020311,2]
[366166377,1750097432647,-500.0,0.00020311,2]
[366166378,1750097432658,-24900.0,0.00020312,2]
[366166379,1750097432670,-186.24389,0.00020542,2]
[366166380,1750097432680,-2211.34045208,0.00020929,2]
[366166425,1750097438483,-483.30135678,0.00020928,2]
[366166427,1750097438495,-12252.80721696,0.00020929,2]
[366166429,1750097438505,-845.47092152,0.00020929,2]
[366166431,1750097438517,-160.0,0.00020929,2]
[366166434,1750097438531,-424.54874296,0.00020929,2]
[366166436,1750097438541,-160.0,0.00020929,2]
[366166438,1750097438551,-1357.57,0.00020933,2]
[366166440,1750097438561,-500.0,0.00021064,2]
[366166442,1750097438571,-1000.0,0.0002107,2]
[366166444,1750097438581,-356.0,0.0002173,5]
[366166446,1750097438591,-1519.03018323,0.00021734,2]
[366166448,1750097438602,-1000.0,0.00021916,2]
[366166450,1750097438612,-460.0,0.00021917,4]
[366166452,1750097438622,-460.0,0.00021917,4]
[366166454,1750097438632,-460.0,0.00021917,2]
[366166456,1750097438641,-557.13929663,0.00021917,4]
[366166458,1750097438651,-589.96,0.00021917,4]
[366166460,1750097438661,-460.0,0.00021917,4]
[366166462,1750097438670,-592.1,0.00021917,4]
[366166464,1750097438680,-460.0,0.00021917,4]
[366166466,1750097438690,-471.73,0.00021917,4]
[366166468,1750097438700,-460.0,0.00021917,4]
[366166470,1750097438710,-651.67,0.00021917,4]
[366166472,1750097438719,-460.0,0.00021917,4]
[366166474,1750097438729,-460.0,0.00021917,4]
[366166476,1750097438739,-460.0,0.00021917,4]
[366166478,1750097438748,-460.0,0.00021917,4]
[366166480,1750097438758,-460.0,0.00021917,4]
[366166482,1750097438767,-460.0,0.00021917,4]
[366166484,1750097438777,-460.0,0.00021917,4]
[366166486,1750097438787,-460.0,0.00021917,4]
[366166488,1750097438797,-460.0,0.00021917,4]
[366166490,1750097438807,-460.0,0.00021917,4]
[366166492,1750097438820,-460.0,0.00021917,4]
[366166494,1750097438830,-434.33329405,0.00021917,4]
[366166496,1750097438839,-460.0,0.00021917,4]
[366166498,1750097438849,-460.0,0.00021917,4]
[366166500,1750097438858,-1054.71,0.00021917,4]
[366166502,1750097438868,-460.0,0.00021917,4]
[366166504,1750097438877,-460.0,0.00021917,4]
[366166506,1750097438887,-310.61,0.00021917,4]
[366166508,1750097438897,-668.82,0.00021917,4]
[366166510,1750097438908,-628.21,0.00021917,4]
[366166512,1750097438919,-460.0,0.00021917,4]
[366166514,1750097438929,-460.0,0.00021917,4]
[366166516,1750097438938,-908.99,0.00021917,4]
[366166518,1750097438948,-460.0,0.00021917,4]
[366166520,1750097438958,-500.95406167,0.00021979,2]
[366166522,1750097438967,-178.0,0.00022,2]
[366166524,1750097438978,-356.0,0.00022018,5]
[366166526,1750097438987,-503.39334109,0.0002205,2]
[366166528,1750097438996,-500.0,0.0002205,2]
[366166530,1750097439006,-276.23075336,0.00022139,2]
[366166532,1750097439015,-460.0,0.0002219,4]
[366166534,1750097439025,-460.0,0.0002219,4]
[366166536,1750097439035,-460.0,0.0002219,4]
[366166538,1750097439045,-460.0,0.0002219,4]
[366166540,1750097439054,-460.0,0.0002219,4]
[366166542,1750097439064,-994.39,0.0002219,4]
[366166544,1750097439074,-460.0,0.0002219,4]
[366166546,1750097439083,-517.9,0.00022191,4]
[366166549,1750097439097,-460.0,0.00022191,4]
[366166551,1750097439106,-173.13440415,0.00022191,2]
[366166553,1750097439116,-460.0,0.00022191,4]
[366166555,1750097439125,-592.1,0.00022191,4]